bitfinex-derivatives/quotes_ETHF0:USTF0_20250101
["timestamp","ask_amount","ask_price","bid_price","bid_amount"]
[1735708628825,0.29931,3348.5,3348.4,0.29932]
[1735708629230,0.4201,3348.5,3348.4,0.29932]
[1735708629928,0.29932,3348.4,3348.2,0.29934]
[1735708630122,0.29933,3348.3,3348.2,0.29934]
[1735708630732,0.4213,3348.4,3348.0,1.6019]
[1735708631030,3.2078,3348.2,3348.1,0.29935]
[1735708632028,3.50714,3348.2,3348.1,0.29935]
[1735708632427,3.50714,3348.2,3348.0,1.90125]
[1735708633133,3.50714,3348.2,3348.1,0.29935]
[1735708633327,3.2078,3348.2,3348.1,0.29935]
[1735708634632,0.72063,3348.4,3348.2,0.29933]
[1735708635237,3.2078,3348.6,3348.5,0.29931]
[1735708635435,0.2993,3348.7,3348.5,0.29931]
[1735708635632,0.2993,3348.7,3348.6,0.7402]
[1735708635829,3.51784819,3348.8,3348.7,0.2993]
[1735708636132,3.51784819,3348.8,3348.7,0.7619]
[1735708636330,0.4362,3348.9,3348.7,0.8963]
[1735708636533,0.4362,3348.9,3348.8,0.29929]
[1735708637640,3.2078,3349.0,3348.9,0.29928]
[1735708647237,3.2078,3349.0,3348.7,2.0593]
[1735708647542,0.29929,3348.8,3348.6,0.7402]
[1735708647844,1.20108,3348.9,3348.7,1.46129]
[1735708648042,0.9018,3348.9,3348.7,1.46129]
[1735708648642,0.9018,3348.9,3348.8,0.29929]
[1735708649242,4.41964819,3348.9,3348.8,0.29929]
[1735708649643,4.71892819,3348.9,3348.7,1.46129]
[1735708650044,4.71892819,3348.9,3348.7,0.29929]
[1735708650252,4.71892819,3348.9,3348.7,1.46129]
[1735708650745,4.41964819,3348.9,3348.8,0.29929]
[1735708651942,0.447,3348.9,3348.8,0.29929]
[1735708660044,0.74822,3348.8,3348.4,4.68793825]
[1735708660247,4.58012628,3348.5,3348.4,2.27293825]
[1735708660446,4.58012628,3348.5,3348.4,0.47443825]
[1735708660645,9.58012628,3348.5,3348.4,0.52246925]
[1735708660946,9.58012628,3348.5,3348.3,7.05787761]
[1735708660947,0.29932,3348.4,3348.3,7.05787761]
[1735708661346,5.29932,3348.4,3348.3,7.05787761]
[1735708661648,0.2994,3347.6,3347.4,1.4614]
[1735708661856,3.2078,3347.5,3347.4,1.4614]
[1735708662349,3.2078,3347.5,3347.4,3.73035823]
[1735708662553,3.2078,3347.9,3347.8,0.29938]
[1735708663148,3.50717,3347.9,3347.8,0.29938]
[1735708663349,8.19558961,3347.9,3347.8,0.29938]
[1735708664053,8.19558961,3347.9,3347.8,0.72188]
[1735708664954,3.50717,3347.9,3347.8,0.72188]
[1735708665854,3.50717,3347.9,3347.8,0.4225]
[1735708669660,3.50717,3347.9,3347.8,0.8492]
[1735708673655,3.50717,3347.9,3347.8,1.2885]
[1735708675058,3.50717,3347.9,3347.8,1.58788]
[1735708676458,3.2078,3347.9,3347.8,1.58788]
[1735708679762,3.50717,3347.9,3347.8,1.58788]
[1735708681255,3.50717,3347.9,3347.8,0.8492]
[1735708684758,3.2078,3347.9,3347.7,1.162]
[1735708684964,0.29938,3347.8,3347.7,1.162]
[1735708688162,0.29938,3347.7,3347.6,2.0517]
[1735708691466,3.2078,3347.9,3347.6,2.0517]
[1735708691772,3.50717,3347.9,3347.7,0.29938]
[1735708692968,2.5086,3347.9,3347.8,0.29938]
[1735708701477,2.5086,3347.9,3347.8,1.46538]
[1735708703475,2.5086,3347.9,3347.6,0.8857]
[1735708703671,0.29938,3347.8,3347.7,1.166]
[1735708704372,0.29938,3347.8,3347.6,1.18509]
[1735708704573,0.29938,3347.8,3347.7,1.166]
[1735708705275,0.29938,3347.8,3347.7,1.46538]
[1735708705976,2.6427261,3347.9,3347.7,1.46538]
[1735708706371,2.3433561,3347.9,3347.8,0.29938]
[1735708707380,3.81509896,3348.0,3347.8,0.29938]
[1735708708575,2.3510167,3347.9,3347.8,0.29938]
[1735708710776,2.3510167,3347.9,3347.8,4.99476343]
[1735708712274,2.3510167,3347.9,3347.8,0.29938]
[1735708713578,2.3510167,3348.0,3347.9,0.29937]
[1735708714685,2.3510167,3348.0,3347.9,4.98904021]
[1735708718482,3.51573896,3348.0,3347.7,8.46292241]
[1735708718683,3.51573896,3348.0,3347.9,0.29937]
[1735708720983,3.51573896,3348.0,3347.7,8.46292241]
[1735708720984,4.5893564,3348.0,3347.7,7.05787761]
[1735708721290,4.58079744,3347.8,3347.7,7.05787761]
[1735708721489,3.2078,3347.8,3347.7,7.05787761]
[1735708722190,3.2078,3347.8,3347.7,7.51447761]
[1735708722585,3.65704825,3347.8,3347.7,0.4566]
[1735708725089,3.65704825,3347.8,3347.7,0.75598]
[1735708725386,0.44924825,3347.8,3347.7,0.75598]
[1735708726690,2.35094573,3347.8,3347.7,5.44563558]
[1735708727594,2.35094573,3348.1,3348.0,0.29936]
[1735708729892,2.35094573,3348.1,3348.0,0.72176]
[1735708730497,2.65029573,3348.1,3348.0,0.4224]
[1735708730791,2.35094573,3348.1,3348.0,0.4224]
[1735708730991,2.35094573,3348.1,3348.0,0.72176]
[1735708731989,3.52641859,3348.2,3348.1,0.29935]
[1735708732194,2.76296432,3348.2,3348.1,3.00311076]
[1735708733896,3.2078,3348.9,3348.1,28.97812787]
[1735708734096,3.50708,3348.9,3348.2,3.2078]
[1735708734398,3.50708,3348.9,3348.6,0.2993]
[1735708736788,0.29929,3348.7,3348.4,0.75082]
[1735708736991,0.4312,3348.6,3348.5,1.164]
[1735708737195,3.50708,3348.9,3348.6,0.2993]
[1735708737390,3.50708,3348.9,3348.7,0.4466]
[1735708741296,3.2078,3348.9,3348.7,0.4466]
[1735708741500,3.2078,3348.9,3348.8,0.29928]
[1735708741700,3.2078,3348.9,3348.8,0.75378]
[1735708758603,3.2078,3348.9,3348.7,1.162]
[1735708758802,0.29929,3348.8,3348.7,1.162]
[1735708761705,1.3723059,3348.8,3348.7,1.162]
[1735708763103,0.29929,3348.7,3348.6,1.162]
[1735708764010,0.29931,3348.5,3348.4,1.46132]
[1735708764607,1.19681,3348.5,3348.4,1.46132]
[1735708765006,0.8975,3348.5,3348.4,1.46132]
[1735708767909,1.19681,3348.5,3348.4,1.46132]
[1735708768106,0.8975,3348.5,3348.4,1.46132]
[1735708768310,0.4478,3348.5,3348.4,1.46132]
[1735708768918,0.4478,3348.5,3348.4,1.89232]
[1735708772513,0.2993,3348.7,3348.4,1.593]
[1735708772713,0.2993,3348.7,3348.5,0.2993]
[1735708772914,0.2993,3348.7,3348.6,0.2993]
[1735708773114,0.4364,3348.8,3348.5,0.445]
[1735708773324,0.4364,3348.8,3348.6,0.2993]
[1735708773510,0.29929,3348.7,3348.6,0.2993]
[1735708777321,3.50708,3348.9,3348.8,0.29928]
[1735708778537,3.65695253,3348.9,3348.8,0.29928]
[1735708780539,3.65695253,3348.9,3348.8,1.18368]
[1735708781435,3.2078,3348.9,3348.8,13.08737232]
[1735708782132,3.14049099,3348.9,3348.8,13.08737232]
[1735708782631,4.70189532,3349.3,3348.8,12.78809232]
[1735708782839,4.70189532,3349.4,3349.0,1.0730159]
[1735708783039,4.70189532,3349.4,3349.3,0.29924]
[1735708784236,4.70189532,3349.4,3349.3,0.74854]
[1735708784440,3.65687728,3349.5,3349.3,0.74854]
[1735708784738,3.65687728,3349.5,3349.4,0.29923]
[1735708784938,3.65687728,3349.5,3349.3,0.74854]
[1735708786142,0.44907728,3349.4,3349.3,0.74854]
[1735708787644,3.2078,3349.5,3349.3,0.74854]
[1735708789444,3.2078,3349.5,3349.4,1.0730159]
[1735708790741,3.65685955,3349.5,3349.4,1.0730159]
[1735708793346,6.73369057,3349.5,3349.4,1.0730159]
[1735708794145,6.73369057,3349.5,3349.4,1.3722459]
[1735708794447,3.2078,3349.5,3349.4,1.3722459]
[1735708794655,3.2078,3349.5,3349.4,1.0730159]
[1735708795343,3.2078,3349.5,3349.4,1.3722459]
[1735708797245,3.50702,3349.5,3349.4,1.0730159]
[1735708797445,3.2078,3349.5,3349.4,1.0730159]
[1735708798748,0.76412,3349.6,3349.4,1.0730159]
[1735708799248,0.76412,3349.6,3349.4,1.3722459]
[1735708799552,0.76412,3349.6,3349.4,0.29923]
[1735708800755,0.29923,3349.5,3349.4,1.162]
[1735708800944,0.4649,3349.6,3349.4,2.2350159]
[1735708801140,0.4649,3349.6,3349.5,0.29922]
[1735708801345,3.2078,3349.7,3349.6,0.29921]
[1735708802245,3.2078,3349.7,3349.4,2.2350159]
[1735708802450,3.2078,3349.7,3349.4,1.46123]
[1735708802650,0.29922,3349.6,3349.4,1.46123]
[1735708802953,0.29922,3349.5,3349.4,1.162]
[1735708803253,0.29922,3349.5,3349.1,4.70130327]
[1735708803254,0.29925,3349.2,3349.1,4.70130327]
[1735708803450,0.29926,3349.1,3349.0,4.70130327]
[1735708803648,1.8235759,3349.1,3349.0,4.70130327]
[1735708805049,0.4513,3349.1,3348.9,0.29927]
[1735708805355,0.29927,3349.0,3348.8,0.29928]
[1735708805549,0.29927,3349.0,3348.7,2.2350159]
[1735708805550,0.29928,3348.9,3348.7,2.2350159]
[1735708805750,0.72457,3349.0,3348.7,2.5343059]
[1735708805953,0.4513,3349.1,3348.9,1.0730159]
[1735708806149,3.2078,3349.2,3349.1,0.29926]
[1735708806349,6.73369057,3349.2,3349.1,0.29926]
[1735708807248,3.2078,3349.2,3349.1,1.3722759]
[1735708807453,3.52589057,3349.5,3349.4,0.29923]
[1735708807754,3.52589057,3349.5,3349.4,1.46123]
[1735708808345,3.52589057,3349.5,3349.4,1.91273]
[1735708808749,0.435,3349.6,3349.4,1.6135]
[1735708808948,0.435,3349.6,3349.5,0.75442]
[1735708813158,6.73369057,3349.7,3349.6,0.29921]
[1735708813861,3.52589057,3349.7,3349.6,0.29921]
[1735708815565,0.44056115,3350.1,3349.8,0.29919]
[1735708815868,0.14139115,3350.1,3349.9,0.29918]
[1735708816058,0.44056115,3350.1,3349.9,0.73928]
[1735708816456,0.44056115,3350.1,3349.9,0.4401]
[1735708817359,0.44056115,3350.1,3349.9,0.73929]
[1735708817960,0.29918,3350.0,3349.9,0.4401]
[1735708818754,0.29918,3350.0,3349.9,0.73929]
[1735708819756,0.29918,3350.0,3349.9,0.4401]
[1735708820072,0.29918,3350.0,3349.9,0.73929]
[1735708821468,3.96645172,3350.1,3349.9,0.73929]
[1735708821856,3.96645172,3350.1,3350.0,0.29918]
[1735708822865,3.66728172,3350.1,3350.0,0.29918]
[1735708823065,3.66728172,3350.1,3350.0,0.74008]
[1735708823863,5.29227873,3350.1,3350.0,0.74008]
[1735708825266,0.74816226,3350.1,3350.0,0.74008]
[1735708826170,0.44899226,3350.1,3350.0,0.74008]
[1735708826466,9.36748451,3350.2,3350.0,0.4409]
[1735708826668,9.36748451,3350.2,3350.0,0.74007]
[1735708826966,9.36748451,3350.2,3350.1,0.29917]
[1735708827367,0.29917,3350.1,3350.0,0.74007]
[1735708827869,0.29917,3350.1,3350.0,0.74008]
[1735708829272,0.29917,3350.1,3350.0,0.4409]
[1735708829472,0.74816226,3350.1,3350.0,0.74008]
[1735708829770,0.74816226,3350.1,3350.0,0.4409]
[1735708829974,0.2992,3349.8,3349.7,1.4612]
[1735708830158,0.2992,3349.8,3349.7,1.162]
[1735708830364,0.2992,3349.8,3349.7,0.2992]
[1735708830569,0.2992,3349.8,3349.6,0.74471]
[1735708830875,0.4634,3349.7,3349.6,0.74471]
[1735708833562,0.7626,3349.7,3349.6,0.4455]
[1735708833766,0.4634,3349.7,3349.6,0.74471]
[1735708835270,0.4634,3349.7,3349.6,1.8177259]
[1735708835972,0.4634,3349.7,3349.6,1.5185159]
[1735708836171,0.4634,3349.7,3349.6,1.8177259]
[1735708838473,0.4634,3349.7,3349.5,1.5924]
[1735708838869,0.76261,3349.7,3349.5,1.89162]
[1735708840376,0.76261,3349.7,3349.6,0.29921]
[1735708840579,0.4634,3349.7,3349.6,0.29921]
[1735708841176,0.7626,3349.7,3349.6,0.29921]
[1735708842683,0.4634,3349.7,3349.6,0.29921]
[1735708844178,2.99043532,3366.8,3349.6,0.29921]
[1735708844179,4.851,3350.4,3349.6,1.0730159]
[1735708844372,5.15015,3350.4,3350.1,1.3721759]
[1735708844573,0.4661,3350.3,3349.9,1.0730159]
[1735708845081,3.52610981,3350.2,3350.1,0.29917]
[1735708846189,4.42330981,3350.3,3350.1,0.29917]
[1735708847183,4.42330981,3350.3,3350.2,0.29916]
[1735708847388,3.52610981,3350.3,3350.2,0.29916]
[1735708847686,3.52610981,3350.3,3350.2,1.46116]
[1735708847891,3.52610981,3350.4,3350.3,0.29915]
[1735708848190,3.52610981,3350.4,3350.3,0.72175]
[1735708848587,0.8687,3350.6,3350.3,1.4956159]
[1735708848787,0.8687,3350.6,3350.4,0.29914]
[1735708848986,0.8687,3350.6,3350.4,0.74014]
[1735708849493,1.16782,3350.6,3350.4,0.74014]
[1735708850495,0.8687,3350.6,3350.4,0.441]
[1735708850695,0.8687,3350.6,3350.5,0.29913]
[1735708851395,1.16782,3350.6,3350.5,0.29913]
[1735708852296,0.8687,3350.6,3350.5,0.29913]
[1735708852490,4.84376149,3350.6,3350.5,0.29913]
[1735708852800,4.41956149,3350.6,3350.5,1.3721459]
[1735708852996,4.41956149,3350.6,3350.5,1.8337459]
[1735708853398,3.97060981,3350.6,3350.5,1.8337459]
[1735708854594,5.14597975,3350.6,3350.5,0.76073]
[1735708855792,4.70147975,3350.6,3350.5,1.8337459]
[1735708856098,0.44892013,3350.6,3350.5,1.8337459]
[1735708858297,0.90152013,3350.6,3350.5,1.8337459]
[1735708861699,2.3503742,3350.6,3350.5,1.8337459]
[1735708863904,2.3503742,3350.6,3350.5,5.0415459]
[1735708864199,0.2521742,3350.6,3350.5,5.0415459]
[1735708864405,3.2078,3351.1,3350.5,4.7424159]
[1735708864706,3.2078,3351.1,3351.0,0.29909]
[1735708864904,3.2078,3351.1,3351.0,1.46109]
[1735708868314,3.2078,3351.1,3351.0,1.89929]
[1735708869316,3.2078,3351.1,3351.0,1.46109]
[1735708870111,3.2078,3351.1,3351.0,1.162]
[1735708870710,3.2078,3351.1,3351.0,1.46109]
[1735708870916,3.2078,3351.1,3351.0,1.162]
[1735708871116,3.50688,3351.1,3351.0,1.162]
[1735708873218,3.50688,3351.1,3350.9,2.5331059]
[1735708873516,0.74219,3351.0,3350.9,1.161]
[1735708874415,0.4431,3351.0,3350.9,1.161]
[1735708874620,0.4431,3351.0,3350.9,0.2991]
[1735708876019,0.74219,3351.0,3350.8,1.161]
[1735708876220,0.8879,3350.9,3350.8,1.161]
[1735708876519,0.8879,3350.9,3350.8,1.46011]
[1735708880017,0.8879,3350.9,3350.8,1.161]
[1735708880226,0.8879,3350.9,3350.8,1.46011]
[1735708881623,1.9609159,3350.9,3350.1,7.89775158]
[1735708881811,1.0730159,3350.4,3350.0,5.85095158]
[1735708882012,0.29916,3350.2,3350.0,4.68995158]
[1735708882221,1.3721759,3350.2,3350.0,4.68995158]
[1735708882617,0.29917,3350.1,3350.0,4.68995158]
[1735708882820,0.29917,3350.1,3349.8,0.29919]
[1735708883021,1.0730159,3350.0,3349.3,8.97076748]
[1735708883220,3.2078,3350.1,3349.3,7.89775158]
[1735708883221,0.29923,3349.5,3349.3,7.89775158]
[1735708883421,1.3532,3349.4,3349.3,7.89775158]
[1735708884422,1.3532,3349.4,3349.3,3.2078]
[1735708885021,1.3532,3349.4,3349.3,3.50704]
[1735708886123,6.7314169,3350.1,3349.3,3.2078]
[1735708886324,1.349,3350.0,3349.3,3.633]
[1735708886627,1.64818,3350.0,3349.7,0.2992]
[1735708887520,0.29919,3349.9,3349.7,0.2992]
[1735708888730,1.349,3350.0,3349.3,3.2078]
[1735708888932,0.29922,3349.5,3349.4,0.29923]
[1735708889929,6.2,3350.0,3349.3,4.3698]
[1735708890232,0.4325,3349.4,3349.3,4.3698]
[1735708890527,0.73173,3349.4,3349.3,4.3698]
[1735708890731,0.4325,3349.4,3349.3,4.3698]
[1735708890934,0.4325,3349.4,3349.3,4.66904]
[1735708894733,0.4325,3349.4,3349.3,3.2078]
[1735708895229,0.73173,3349.4,3349.3,3.2078]
[1735708895538,0.4325,3349.4,3348.9,5.85195158]
[1735708895738,0.29927,3349.1,3348.9,5.85195158]
[1735708895936,0.4325,3349.4,3348.9,5.85195158]
[1735708895937,0.29924,3349.3,3348.9,6.15122158]
[1735708896234,0.29924,3349.3,3348.9,1.162]
[1735708896437,0.29927,3349.0,3348.9,1.162]
[1735708897028,0.29926,3349.1,3348.9,1.162]
[1735708897339,0.29926,3349.1,3348.9,1.46128]
[1735708897538,0.4244,3349.0,3348.9,1.46128]
[1735708898227,0.4244,3349.0,3348.9,1.162]
[1735708898737,0.4244,3349.0,3348.9,1.46128]
[1735708900836,0.4244,3349.0,3348.9,1.90268]
[1735708901227,0.4244,3349.0,3348.7,3.2078]
[1735708901228,0.29928,3348.9,3348.7,3.2078]
[1735708901426,0.2993,3348.7,3348.4,0.29932]
[1735708902640,0.2993,3348.7,3348.5,0.29931]
[1735708903939,0.2993,3348.7,3348.4,0.29931]
[1735708907345,0.2993,3348.6,3348.4,0.29931]
[1735708911744,0.29933,3348.4,3348.1,1.03580691]
[1735708911938,3.2078,3348.8,3348.2,1.164]
[1735708911939,0.29933,3348.3,3348.2,1.164]
[1735708912333,0.72083,3348.4,3348.2,1.164]
[1735708912533,1.15613,3348.4,3348.2,1.164]
[1735708913846,0.29933,3348.3,3348.2,1.164]
[1735708914346,0.8568,3348.4,3348.2,1.164]
[1735708914548,0.8568,3348.4,3347.9,0.4526]
[1735708914844,0.29936,3348.0,3347.9,1.6166]
[1735708915944,0.29935,3348.1,3347.9,1.6166]
[1735708919651,4.0646,3348.4,3347.9,0.4526]
[1735708919853,0.29933,3348.3,3348.1,0.29934]
[1735708920048,0.29933,3348.3,3348.1,1.46334]
[1735708920245,0.29933,3348.3,3348.1,1.46335]
[1735708921051,0.29934,3348.2,3348.1,1.164]
[1735708921457,0.29934,3348.3,3348.1,1.46334]
[1735708923357,0.29934,3348.2,3348.1,1.46334]
[1735708926059,0.29934,3348.2,3348.1,1.46335]
[1735708927150,0.29934,3348.2,3348.1,1.164]
[1735708929948,4.0646,3348.4,3348.0,0.29935]
[1735708930258,0.29935,3348.1,3347.9,0.75196]
[1735708930455,0.29935,3348.1,3348.0,1.46136]
[1735708931855,0.29935,3348.1,3348.0,1.162]
[1735708932259,0.29935,3348.1,3348.0,2.23543457]
[1735708934063,4.0646,3348.4,3348.0,2.23543457]
[1735708934259,4.0646,3348.4,3348.2,1.07343457]
[1735708934460,0.29933,3348.3,3348.2,1.07343457]
[1735708934962,1.15613,3348.4,3348.2,1.37276457]
[1735708935164,0.72083,3348.4,3348.2,1.37276457]
[1735708935367,0.72083,3348.4,3348.3,0.4207]
[1735708936260,0.4215,3348.4,3348.2,1.07343457]
[1735708936454,0.29934,3348.2,3348.1,0.29934]
[1735708938164,0.29934,3348.2,3348.0,7.88521414]
[1735708941063,0.29934,3348.2,3348.1,4.68995158]
[1735708942674,0.29934,3348.2,3348.1,4.86383515]
[1735708945369,0.29934,3348.2,3348.1,11.89876253]
[1735708946373,0.29934,3348.2,3348.1,12.19811253]
[1735708948073,0.29934,3348.2,3348.1,5.16318515]
[1735708948267,0.29934,3348.2,3348.1,4.86383515]
[1735708950074,0.29934,3348.2,3348.1,5.16318515]
[1735708950574,0.29933,3348.3,3348.1,5.16318515]
[1735708951671,3.9451169,3348.4,3348.3,0.29933]
[1735708951875,3.9451169,3348.4,3348.3,1.37276457]
[1735708953283,0.4215,3348.4,3348.3,13.29943941]
[1735708954575,0.4215,3348.4,3348.3,6.23659972]
[1735708957183,0.4215,3348.4,3348.3,5.93726972]
[1735708957184,0.29932,3348.4,3348.3,5.93726972]
[1735708957372,0.29932,3348.4,3348.3,15.31717289]
[1735708957979,3.5236169,3348.6,3348.3,15.31717289]
[1735708958179,1.3493345,3348.6,3348.5,4.58054457]
[1735708958381,0.28961641,3348.6,3348.5,4.58054457]
[1735708959285,4.69815587,3349.2,3348.5,4.28123457]
[1735708959584,4.69815587,3349.2,3349.1,1.37269457]
[1735708959777,4.69815587,3349.2,3349.1,2.53469457]
[1735708960382,4.69815587,3349.2,3349.1,2.23543457]
[1735708960788,3.97224,3349.3,3349.1,7.39852972]
[1735708961280,4.69815587,3349.6,3349.5,0.29922]
[1735708961476,4.69815587,3349.6,3349.5,4.58045457]
[1735708961477,1.56700542,3349.6,3349.5,4.58045457]
[1735708962082,2.02240542,3349.8,3349.7,0.2992]
[1735708962282,2.02240542,3349.8,3349.7,1.37263457]
[1735708963087,0.4554,3349.8,3349.7,13.51604893]
[1735708963790,0.4336,3349.9,3349.8,0.2992]
[1735708964087,0.4336,3349.9,3349.8,1.4612]
[1735708967380,0.4336,3349.9,3349.5,7.89583739]
[1735708967585,0.2992,3349.8,3349.6,1.162]
[1735708967988,3.6414,3349.9,3349.6,1.162]
[1735708968188,0.2992,3349.7,3349.6,1.162]
[1735708968690,0.2992,3349.8,3349.6,1.162]
[1735708969494,3.6414,3349.9,3349.6,1.162]
[1735708969495,0.2992,3349.7,3349.6,1.162]
[1735708969689,3.6414,3349.9,3349.1,4.68803739]
[1735708969995,3.6414,3349.9,3349.2,1.162]
[1735708969996,0.29924,3349.4,3349.2,1.162]
[1735708970291,0.4427,3349.3,3349.2,1.162]
[1735708971500,0.29925,3349.2,3349.0,4.3698]
[1735708971893,0.4248,3349.1,3349.0,4.3698]
[1735708972093,0.4248,3349.1,3349.0,4.66907]
[1735708972286,0.72406,3349.1,3349.0,3.2078]
[1735708973290,0.4248,3349.1,3349.0,3.2078]
[1735708973592,0.4248,3349.1,3349.0,3.50707]
[1735708974498,0.4248,3349.1,3349.0,3.2078]
[1735708979197,0.4248,3349.1,3349.0,3.50707]
[1735708981298,0.4427,3349.3,3349.0,3.2078]
[1735708981505,0.4427,3349.3,3349.2,0.29925]
[1735708982395,0.4265,3349.5,3349.4,0.29923]
[1735708982594,0.4265,3349.5,3349.4,3.50703]
[1735708985396,3.2078,3350.3,3349.4,5.47294589]
[1735708985602,1.62636,3350.2,3349.4,6.22103589]
[1735708985803,1.62636,3350.2,3349.5,0.8887]
[1735708986008,1.62636,3350.2,3349.9,0.29918]
[1735708986303,0.29917,3350.1,3349.9,0.29918]
[1735708987300,1.3272,3350.2,3350.1,0.29917]
[1735708989912,3.2078,3350.8,3350.0,5.47294589]
[1735708990206,4.40681,3350.8,3350.6,0.29912]
[1735708990400,4.1077,3350.8,3350.6,1.163]
[1735708990601,4.40681,3350.8,3350.6,1.46212]
[1735708991312,0.29912,3350.7,3350.6,1.163]
[1735708993505,4.1077,3350.8,3350.0,3.2078]
[1735708993804,0.29914,3350.5,3350.4,0.29914]
[1735708995806,0.29914,3350.5,3350.0,3.2078]
[1735708995807,8.9587,3350.8,3350.0,3.2078]
[1735708996111,0.29917,3350.1,3350.0,4.66898]
[1735708996605,0.29917,3350.1,3350.0,3.2078]
[1735708997010,0.29917,3350.1,3350.0,3.50698]
[1735708997606,0.29917,3350.1,3350.0,3.2078]
[1735708998812,0.29917,3350.1,3350.0,3.50698]
[1735708999007,0.29917,3350.1,3350.0,3.2078]
[1735708999213,0.29919,3349.9,3349.8,1.162]
[1735709000212,3.662,3350.2,3349.7,0.2992]
[1735709000409,1.1797,3349.8,3349.7,0.2992]
[1735709001414,1.1797,3349.8,3349.6,0.29921]
[1735709001613,0.8805,3349.8,3349.6,0.29921]
[1735709001814,0.8805,3349.8,3349.7,0.2992]
[1735709003806,0.8805,3349.8,3349.5,1.6199]
[1735709003807,1.1797,3349.8,3349.5,1.91912]
[1735709004001,1.1797,3349.8,3349.6,0.29921]
[1735709004206,0.8805,3349.8,3349.7,0.2992]
[1735709006417,0.8805,3349.8,3349.5,1.162]
[1735709006716,0.8805,3349.8,3349.7,0.2992]
[1735709015721,3.662,3350.2,3349.6,5.11323739]
[1735709016025,1.19497,3350.1,3349.9,0.29918]
[1735709018724,0.29918,3350.0,3349.9,0.29918]
[1735709022526,3.24077164,3350.1,3350.0,0.29918]
[1735709022527,3.53995164,3350.1,3350.0,0.29918]
[1735709024127,0.2992,3349.8,3349.7,0.2992]
[1735709024521,4.31319686,3350.1,3349.6,4.68803739]
[1735709024826,0.465,3349.7,3349.6,4.98724739]
[1735709025026,0.465,3349.7,3349.6,0.29921]
[1735709026230,0.465,3349.7,3349.6,0.75111]
[1735709026631,0.465,3349.7,3349.6,5.43914739]
[1735709028630,0.465,3349.7,3349.6,5.83047244]
[1735709028936,2.34497164,3349.9,3349.8,0.2992]
[1735709029137,2.80547164,3349.9,3349.8,0.2992]
[1735709033631,2.34497164,3349.9,3349.8,1.37162522]
[1735709034430,2.79327164,3350.1,3350.0,0.29918]
[1735709036033,2.34497164,3350.1,3350.0,1.37160522]
[1735709036235,2.34497164,3350.1,3350.0,1.83160522]
[1735709036638,2.34497164,3350.1,3350.0,2.71260522]
[1735709037037,2.34497164,3350.2,3350.1,0.29917]
[1735709038443,3.24357164,3350.5,3350.4,0.29914]
[1735709038636,2.34497164,3350.5,3350.4,1.46114]
[1735709039036,2.34497164,3350.5,3350.4,1.92294]
[1735709040040,2.34497164,3350.6,3350.5,0.29913]
[1735709040240,2.34497164,3350.6,3350.5,1.37155522]
[1735709041139,2.34497164,3350.6,3350.5,6.07077343]
[1735709041340,2.34497164,3350.6,3350.5,6.94817343]
[1735709042237,3.52375856,3350.6,3350.5,2.24895522]
[1735709042540,3.52375856,3350.6,3350.5,1.37155522]
[1735709044446,1.3549,3351.0,3350.9,0.2991]
[1735709044742,2.35031294,3351.1,3351.0,0.29909]
[1735709045641,2.81041294,3351.2,3350.9,1.07242522]
[1735709045836,2.81041294,3351.2,3351.1,0.29908]
[1735709046034,2.81041294,3351.2,3351.1,1.46108]
[1735709047237,0.4601,3351.2,3351.1,1.46108]
[1735709047841,0.75917,3351.2,3351.1,1.162]
[1735709051635,0.29908,3351.1,3350.7,0.29911]
[1735709051841,0.29911,3350.8,3350.7,1.161]
[1735709056150,3.50691,3350.8,3350.5,0.29913]
[1735709056348,1.3355,3350.7,3350.5,1.46013]
[1735709056750,1.3355,3350.7,3350.6,0.29913]
[1735709057449,1.3355,3350.7,3350.5,1.161]
[1735709058352,1.3355,3350.7,3350.6,0.29913]
[1735709058542,1.3355,3350.7,3350.5,1.161]
[1735709058749,1.3355,3350.7,3350.6,0.29913]
[1735709059547,0.29913,3350.6,3350.1,0.29916]
[1735709059751,0.29915,3350.4,3350.1,0.29916]
[1735709059950,0.29915,3350.3,3350.1,0.29916]
[1735709060153,0.8496,3350.2,3350.1,0.29916]
[1735709060451,1.14876,3350.2,3350.0,0.29917]
[1735709060653,0.8496,3350.2,3349.9,4.69152069]
[1735709060958,0.29918,3350.0,3349.9,4.69152069]
[1735709061754,0.29918,3350.0,3349.8,1.4602]
[1735709061955,0.4261,3349.9,3349.8,1.4602]
[1735709064952,0.72529,3349.9,3349.8,1.4602]
[1735709065459,0.4261,3349.9,3349.8,1.4602]
[1735709067561,0.72529,3349.9,3349.8,1.4602]
[1735709069663,0.72529,3349.9,3349.8,0.2992]
[1735709071464,0.2992,3349.8,3349.7,1.161]
[1735709072363,0.2992,3349.8,3349.7,1.46021]
[1735709087272,0.2992,3349.8,3349.7,1.161]
[1735709091668,0.2992,3349.8,3349.7,1.46021]
[1735709092981,0.2992,3349.8,3349.7,0.29921]
[1735709095881,0.29921,3349.7,3349.6,0.29921]
[1735709096075,0.9125,3349.7,3349.5,1.162]
[1735709096281,0.29921,3349.6,3349.5,1.162]
[1735709096482,0.29922,3349.5,3349.4,3.50703]
[1735709096785,0.75252,3349.5,3349.4,3.2078]
[1735709097182,0.4533,3349.5,3349.2,4.69152069]
[1735709097382,0.29924,3349.4,3349.3,0.29924]
[1735709098087,0.4533,3349.5,3349.2,5.85352069]
[1735709098277,0.29924,3349.4,3349.2,6.15277069]
[1735709100383,0.29924,3349.4,3349.2,5.85352069]
[1735709100685,0.75253,3349.5,3349.3,1.37175381]
[1735709100885,0.4533,3349.5,3349.3,1.07251381]
[1735709101085,0.29923,3349.4,3349.3,1.37175381]
[1735709101486,0.29923,3349.4,3349.3,6.0632745]
[1735709102289,0.75253,3349.5,3349.3,6.0632745]